fUST/lending_fUST_20260427
["ID","MTS","AMOUNT","RATE_DAILY","PERIOD"]
[421208234,1777255843398,-515.84,0.00018966,2]
[421208236,1777255843407,-515.84,0.00018966,2]
[421208238,1777255843417,-515.84,0.00018966,2]
[421208241,1777255843426,-515.84,0.00018966,2]
[421208244,1777255843439,-515.98396607,0.00018966,2]
[421208247,1777255843449,-151.442774,0.00018966,2]
[421208248,1777255843458,-500.0,0.00018966,2]
[421208252,1777255843468,-375.98925945,0.00018966,2]
[421208254,1777255843478,-489.8765,0.00018966,2]
[421208256,1777255843487,-489.8765,0.00018966,2]
[421208257,1777255843496,-489.8765,0.00018966,2]
[421208259,1777255843505,-489.8765,0.00018966,2]
[421208260,1777255843514,-151.0,0.00018966,2]
[421208262,1777255843524,-151.0,0.00018966,2]
[421208263,1777255843533,-151.0,0.00018966,2]
[421208265,1777255843542,-151.0,0.00018966,2]
[421208266,1777255843552,-1112.105777,0.00018966,2]
[421208268,1777255843561,-1112.105777,0.00018966,2]
[421208269,1777255843571,-1112.105777,0.00018966,2]
[421208270,1777255843580,-1112.105777,0.00018966,2]
[421208271,1777255843591,-774.622723,0.00018966,2]
[421208272,1777255843600,-774.622723,0.00018966,2]
[421208273,1777255843610,-774.622723,0.00018966,2]
[421208274,1777255843620,-774.622723,0.00018966,2]
[421208275,1777255843630,-151.0,0.00018966,2]
[421208276,1777255843639,-151.0,0.00018966,2]
[421208277,1777255843649,-151.0,0.00018966,2]
[421208278,1777255843659,-1080.240546,0.00018966,2]
[421208279,1777255843669,-1080.240546,0.00018966,2]
[421208280,1777255843679,-1080.240546,0.00018966,2]
[421208281,1777255843688,-690.764039,0.00018966,2]
[421208282,1777255843698,-1080.240546,0.00018966,2]
[421208283,1777255843708,-690.764039,0.00018966,2]
[421208284,1777255843718,-690.764039,0.00018966,2]
[421208285,1777255843727,-690.764039,0.00018966,2]
[421208286,1777255843737,-805.93,0.00018966,2]
[421208287,1777255843747,-805.93,0.00018966,2]
[421208288,1777255843756,-805.93,0.00018966,2]
[421208289,1777255843766,-805.93,0.00018966,2]
[421208290,1777255843775,-805.93,0.00018966,2]
[421208291,1777255843785,-805.93,0.00018966,2]
[421208292,1777255843794,-805.93,0.00018966,2]
[421208293,1777255843804,-805.93,0.00018966,2]
[421208294,1777255843813,-805.93,0.00018966,2]
[421208295,1777255843823,-805.93,0.00018966,2]
[421208296,1777255843833,-805.93,0.00018966,2]
[421208297,1777255843842,-805.93,0.00018966,2]
[421208298,1777255843852,-805.93,0.00018966,2]
[421208299,1777255843861,-805.93,0.00018966,2]
[421208300,1777255843871,-805.93,0.00018966,2]
[421208301,1777255843881,-805.93,0.00018966,2]
[421208302,1777255843892,-805.93,0.00018966,2]
[421208303,1777255843902,-805.93,0.00018966,2]
[421208304,1777255843911,-805.93,0.00018966,2]
[421208305,1777255843921,-806.03207979,0.00018966,2]
[421208306,1777255843930,-1104.915259,0.00018966,2]
[421208307,1777255843939,-1104.915259,0.00018966,2]
[421208308,1777255843950,-1104.915259,0.00018966,2]
[421208309,1777255843959,-1104.915259,0.00018966,2]
[421208310,1777255843969,-1104.915259,0.00018966,2]
[421208311,1777255843979,-1104.915259,0.00018966,2]
[421208312,1777255843989,-1104.915259,0.00018966,2]
[421208313,1777255843998,-1104.915259,0.00018966,2]
[421208314,1777255844009,-925.117288,0.00018966,2]
[421208315,1777255844019,-925.117288,0.00018966,2]
[421208316,1777255844028,-925.117288,0.00018966,2]
[421208317,1777255844038,-925.117288,0.00018966,2]
[421208318,1777255844048,-925.117288,0.00018966,2]
[421208319,1777255844057,-925.117288,0.00018966,2]
[421208320,1777255844067,-925.117288,0.00018966,2]
[421208321,1777255844076,-925.117288,0.00018966,2]
[421208322,1777255844085,-878.382017,0.00018966,2]
[421208323,1777255844095,-878.382017,0.00018966,2]
[421208324,1777255844104,-525.400138,0.00018966,2]
[421208325,1777255844114,-525.400138,0.00018966,2]
[421208326,1777255844123,-878.382017,0.00018966,2]
[421208327,1777255844133,-878.382017,0.00018966,2]
[421208328,1777255844143,-525.400138,0.00018966,2]
[421208329,1777255844152,-525.400138,0.00018966,2]
[421208331,1777255844162,-525.400138,0.00018966,2]
[421208333,1777255844172,-878.382017,0.00018966,2]
[421208335,1777255844182,-525.400138,0.00018966,2]
[421208337,1777255844191,-878.382017,0.00018966,2]
[421208338,1777255844200,-167.687147,0.00018966,2]
[421208339,1777255844209,-525.400138,0.00018966,2]
[421208340,1777255844219,-878.382017,0.00018966,2]
[421208341,1777255844228,-525.400138,0.00018966,2]
[421208342,1777255844237,-878.382017,0.00018966,2]
[421208343,1777255844247,-1169.486973,0.00018966,2]
[421208344,1777255844256,-1169.486973,0.00018966,2]
[421208345,1777255844265,-1169.486973,0.00018966,2]
[421208346,1777255844275,-1169.486973,0.00018966,2]
[421208347,1777255844284,-1169.486973,0.00018966,2]
[421208348,1777255844294,-1169.486973,0.00018966,2]
[421208349,1777255844303,-1169.486973,0.00018966,2]
[421208350,1777255844312,-1169.486977,0.00018966,2]
[421208351,1777255844322,-162.647572,0.00018966,2]
[421208352,1777255844331,-801.85129955,0.00018997,2]
[421208353,1777255844340,-500.48,0.00019,2]
[421208354,1777255844350,-2213.840536,0.00019015,7]
[421208355,1777255844360,-312.0,0.00019042,2]
[421208356,1777255844369,-831.51979763,0.00019052,2]
[421208357,1777255844379,-216.279763,0.00019063,2]
[421208358,1777255844388,-216.279763,0.00019063,2]
[421208359,1777255844398,-216.279763,0.00019063,2]
[421208360,1777255844407,-216.279763,0.00019063,2]
[421208361,1777255844417,-151.0,0.00019063,2]
[421208362,1777255844427,-151.0,0.00019063,2]
[421208363,1777255844436,-158.957063,0.00019063,2]
[421208364,1777255844446,-862.28603014,0.00019107,2]
[421208365,1777255844455,-319.938,0.00019113,2]
[421208366,1777255844465,-187.899,0.00019113,2]
[421208367,1777255844474,-894.19061326,0.00019162,2]
[421208368,1777255844483,-250.0,0.00019167,2]
[421208369,1777255844493,-250.0,0.00019167,2]
[421208370,1777255844503,-250.0,0.00019167,2]
[421208371,1777255844512,-154.76,0.00019167,2]
[421208372,1777255844522,-500.0,0.00019173,2]
[421208373,1777255844531,-150.0,0.00019173,2]
[421208374,1777255844541,-500.0,0.00019173,2]
[421208375,1777255844550,-500.0,0.00019173,2]
[421208376,1777255844559,-500.0,0.00019173,2]
[421208377,1777255844569,-500.0,0.00019173,2]
[421208378,1777255844578,-11250.144228,0.00019174,7]
[421208379,1777255844588,-150.0,0.00019175,2]
[421208380,1777255844598,-150.0,0.00019175,2]
[421208381,1777255844608,-281.503,0.00019175,2]
[421208382,1777255844618,-267.726,0.00019175,2]
[421208383,1777255844627,-151.5,0.00019178,2]
[421208384,1777255844638,-500.0,0.00019178,2]
[421208385,1777255844647,-9970.4261558,0.00019178,2]
[421208386,1777255844657,-15049.3615857,0.00019178,2]
[421208387,1777255844667,-500.0,0.00019178,2]
[421208388,1777255844677,-11864.166433,0.00019178,2]
[421208389,1777255844686,-152.122676,0.00019178,2]
[421208390,1777255844695,-236.961094,0.00019178,2]
[421208391,1777255844704,-500.0,0.00019178,2]
[421208392,1777255844715,-500.0,0.00019178,2]
[421208393,1777255844724,-500.0,0.00019178,2]
[421208394,1777255844734,-500.0,0.00019178,2]
[421208395,1777255844743,-1442.79,0.00019178,2]
[421208396,1777255844753,-500.0,0.00019178,2]
[421208397,1777255844763,-909.38,0.00019178,2]
[421208398,1777255844772,-500.0,0.00019178,2]
[421208399,1777255844783,-500.0,0.00019178,2]
[421208400,1777255844792,-613.97,0.00019178,2]
[421208401,1777255844802,-500.0,0.00019178,2]
[421208402,1777255844811,-500.0,0.00019178,2]
[421208403,1777255844821,-2482.84,0.00019178,2]
[421208404,1777255844830,-151.0,0.00019178,2]
[421208405,1777255844839,-151.0,0.00019178,2]
[421208406,1777255844849,-151.0,0.00019178,2]
[421208407,1777255844859,-151.0,0.00019178,2]
[421208408,1777255844868,-151.0,0.00019178,2]
[421208409,1777255844878,-151.0,0.00019178,2]
[421208410,1777255844887,-151.0,0.00019178,2]
[421208411,1777255844897,-1454.35,0.00019178,2]
[421208412,1777255844907,-151.0,0.00019178,2]
[421208413,1777255844916,-500.0,0.00019178,2]
[421208414,1777255844925,-1233.7663739,0.00019178,2]
[421208415,1777255844935,-500.0,0.00019178,2]
[421208416,1777255844944,-500.0,0.00019178,2]
[421208417,1777255844954,-500.0,0.00019178,2]
[421208418,1777255844963,-500.0,0.00019178,2]
[421208419,1777255844973,-500.0,0.00019178,2]
[421208420,1777255844983,-500.0,0.00019178,2]
[421208421,1777255844992,-500.0,0.00019178,2]
[421208422,1777255845002,-554.03,0.00019178,2]
[421208423,1777255845013,-514.19279205,0.00019178,2]
[421208424,1777255845022,-533.52337933,0.00019178,2]
[421208425,1777255845032,-1069.56,0.00019178,2]
[421208426,1777255845042,-500.0,0.00019178,2]
[421208427,1777255845051,-514.69374324,0.00019178,2]
[421208428,1777255845060,-216.279763,0.00019178,2]
[421208429,1777255845070,-216.279763,0.00019178,2]
[421208430,1777255845079,-216.279763,0.00019178,2]
[421208431,1777255845089,-572.61,0.00019178,2]
[421208432,1777255845099,-511.08,0.00019178,2]
[421208433,1777255845109,-511.08,0.00019178,2]
[421208434,1777255845118,-511.08,0.00019178,2]
[421208435,1777255845128,-216.279763,0.00019178,2]
[421208436,1777255845137,-216.279763,0.00019178,2]
[421208437,1777255845147,-511.08,0.00019178,2]
[421208438,1777255845157,-511.08,0.00019178,2]
[421208439,1777255845167,-216.279763,0.00019178,2]
[421208440,1777255845176,-511.08,0.00019178,2]
[421208441,1777255845186,-511.08,0.00019178,2]
[421208442,1777255845196,-511.08,0.00019178,2]
[421208443,1777255845206,-511.08,0.00019178,2]
[421208444,1777255845217,-511.08,0.00019178,2]
[421208445,1777255845226,-216.279763,0.00019178,2]
[421208446,1777255845236,-511.08,0.00019178,2]
[421208447,1777255845246,-511.08,0.00019178,2]
[421208448,1777255845255,-216.279763,0.00019178,2]
[421208449,1777255845264,-511.08,0.00019178,2]
[421208450,1777255845274,-216.279763,0.00019178,2]
[421208451,1777255845284,-511.08,0.00019178,2]
[421208452,1777255845343,-511.08,0.00019178,2]
[421208453,1777255845352,-511.08,0.00019178,2]
[421208454,1777255845362,-511.08,0.00019178,2]
[421208455,1777255845371,-511.08,0.00019178,2]
[421208456,1777255845381,-216.279763,0.00019178,2]
[421208457,1777255845390,-511.08,0.00019178,2]
[421208458,1777255845399,-511.08,0.00019178,2]
[421208459,1777255845409,-216.279763,0.00019178,2]
[421208460,1777255845418,-511.08,0.00019178,2]
[421208461,1777255845428,-511.08,0.00019178,2]
[421208462,1777255845437,-216.279755,0.00019178,2]
[421208463,1777255845446,-511.08,0.00019178,2]
[421208464,1777255845455,-511.22001814,0.00019178,2]
[421208465,1777255845464,-984.73,0.00019178,2]
[421208466,1777255845474,-151.0,0.00019178,2]
[421208467,1777255845483,-500.0,0.00019178,2]
[421208468,1777255845492,-151.0,0.00019178,2]
[421208469,1777255845502,-151.0,0.00019178,2]
[421208470,1777255845511,-151.0,0.00019178,2]
[421208471,1777255845520,-151.0,0.00019178,2]
[421208472,1777255845530,-151.0,0.00019178,2]
[421208473,1777255845539,-500.0,0.00019178,2]
[421208474,1777255845548,-2466.21,0.00019178,2]
[421208475,1777255845558,-500.0,0.00019178,2]
[421208476,1777255845567,-500.0,0.00019178,2]
[421208477,1777255845576,-500.0,0.00019178,2]
[421208478,1777255845586,-500.0,0.00019178,2]
[421208479,1777255845595,-503.42949751,0.00019178,2]
[421208480,1777255845604,-399.72813892,0.00019178,2]
[421208481,1777255845614,-671.8,0.00019178,2]
[421208482,1777255845624,-500.0,0.00019178,2]
[421208483,1777255845633,-500.0,0.00019178,2]
[421208484,1777255845642,-537.91441756,0.00019178,2]
[421208485,1777255845651,-489.8765,0.00019178,2]
[421208486,1777255845661,-489.8765,0.00019178,2]
[421208487,1777255845670,-489.8765,0.00019178,2]
[421208488,1777255845679,-489.8765,0.00019178,2]
[421208489,1777255845690,-489.8765,0.00019178,2]
[421208490,1777255845699,-500.77376715,0.00019178,2]
[421208491,1777255845707,-489.8765,0.00019178,2]
[421208492,1777255845716,-489.8765,0.00019178,2]
[421208493,1777255845725,-489.8765,0.00019178,2]
[421208494,1777255845734,-489.8765,0.00019178,2]
[421208495,1777255845743,-500.0,0.00019178,2]
[421208496,1777255845753,-489.8765,0.00019178,2]
[421208497,1777255845762,-489.8765,0.00019178,2]
[421208498,1777255845770,-489.8765,0.00019178,2]
[421208499,1777255845779,-500.35337882,0.00019178,2]
[421208500,1777255845789,-1137.42,0.00019178,2]
[421208501,1777255845798,-151.0,0.00019178,2]
[421208502,1777255845807,-151.0,0.00019178,2]
[421208503,1777255845817,-151.0,0.00019178,2]
[421208504,1777255845826,-154.013784,0.00019178,2]
[421208505,1777255845835,-500.28616284,0.00019178,2]
[421208506,1777255845845,-502.70603192,0.00019178,2]
[421208507,1777255845854,-1948.51,0.00019178,2]
[421208508,1777255845864,-166.0,0.00019178,2]
[421208509,1777255845873,-155.0,0.00019178,2]
[421208510,1777255845882,-166.0,0.00019178,2]
[421208511,1777255845892,-167.0,0.00019178,2]
[421208512,1777255845902,-649.0,0.00019178,2]
[421208513,1777255845911,-166.0,0.00019178,2]
[421208514,1777255845921,-264.03248726,0.00019178,2]
[421208515,1777255845930,-649.0,0.00019178,2]
[421208516,1777255845939,-155.0,0.00019178,2]
[421208517,1777255845948,-166.0,0.00019178,2]
[421208518,1777255845957,-340.0,0.00019178,2]
[421208519,1777255845967,-649.0,0.00019178,2]
[421208520,1777255845976,-155.0,0.00019178,2]
[421208521,1777255845985,-166.0,0.00019178,2]
[421208522,1777255845994,-340.0,0.00019178,2]
[421208523,1777255846003,-649.0,0.00019178,2]
[421208524,1777255846012,-649.0,0.00019178,2]
[421208525,1777255846022,-179.0,0.00019178,2]
[421208526,1777255846031,-649.0,0.00019178,2]
[421208527,1777255846040,-179.0,0.00019178,2]
[421208528,1777255846050,-649.0,0.00019178,2]
[421208529,1777255846060,-181.06055363,0.00019178,2]
[421208530,1777255846070,-649.0,0.00019178,2]
[421208531,1777255846079,-649.0,0.00019178,2]
[421208532,1777255846088,-151.0,0.00019178,2]
[421208533,1777255846098,-2492.75,0.00019178,2]
[421208534,1777255846107,-649.0,0.00019178,2]
[421208535,1777255846117,-151.0,0.00019178,2]
[421208536,1777255846126,-649.0,0.00019178,2]
[421208537,1777255846136,-151.0,0.00019178,2]
[421208538,1777255846145,-649.0,0.00019178,2]
[421208539,1777255846155,-301.01988268,0.00019178,2]
[421208540,1777255846164,-151.0,0.00019178,2]
[421208541,1777255846174,-649.0,0.00019178,2]
[421208542,1777255846183,-151.0,0.00019178,2]
[421208543,1777255846192,-649.0,0.00019178,2]
[421208544,1777255846201,-151.0,0.00019178,2]
[421208545,1777255846210,-649.0,0.00019178,2]
[421208546,1777255846220,-151.0,0.00019178,2]
[421208547,1777255846229,-649.0,0.00019178,2]
[421208548,1777255846238,-155.9615657,0.00019178,2]
[421208549,1777255846248,-649.0,0.00019178,2]
[421208550,1777255846257,-649.0,0.00019178,2]
[421208551,1777255846266,-649.0,0.00019178,2]
[421208552,1777255846275,-649.0,0.00019178,2]
[421208553,1777255846285,-649.0,0.00019178,2]
[421208554,1777255846294,-318.91352882,0.00019178,2]
[421208555,1777255846303,-500.0,0.00019178,2]
[421208556,1777255846312,-649.0,0.00019178,2]
[421208557,1777255846322,-649.0,0.00019178,2]
[421208558,1777255846331,-649.0,0.00019178,2]
[421208559,1777255846340,-649.0,0.00019178,2]
[421208560,1777255846350,-649.0,0.00019178,2]
[421208561,1777255846359,-649.0,0.00019178,2]
[421208562,1777255846368,-649.0,0.00019178,2]
[421208563,1777255846378,-649.0,0.00019178,2]
[421208564,1777255846387,-649.0,0.00019178,2]
[421208565,1777255846396,-649.0,0.00019178,2]
[421208566,1777255846406,-649.0,0.00019178,2]
[421208567,1777255846415,-500.35795771,0.00019178,2]
[421208568,1777255846424,-649.0,0.00019178,2]
[421208569,1777255846433,-649.0,0.00019178,2]
[421208570,1777255846443,-500.37216184,0.00019178,2]
[421208572,1777255846452,-649.0,0.00019178,2]
[421208573,1777255846461,-649.0,0.00019178,2]
[421208574,1777255846470,-649.0,0.00019178,2]
[421208575,1777255846479,-637.35,0.00019178,2]
[421208576,1777255846488,-649.0,0.00019178,2]
[421208577,1777255846498,-649.0,0.00019178,2]
[421208578,1777255846507,-649.0,0.00019178,2]
[421208580,1777255846516,-649.0,0.00019178,2]
[421208582,1777255846525,-649.0,0.00019178,2]
[421208583,1777255846534,-649.0,0.00019178,2]
[421208584,1777255846543,-649.0,0.00019178,2]
[421208585,1777255846552,-649.0,0.00019178,2]
[421208586,1777255846562,-649.0,0.00019178,2]
[421208587,1777255846571,-649.0,0.00019178,2]
[421208588,1777255846580,-649.0,0.00019178,2]
[421208589,1777255846590,-649.0,0.00019178,2]
[421208590,1777255846599,-350.75341394,0.00019178,2]
[421208591,1777255846608,-634.85904186,0.00019178,2]
[421208592,1777255846618,-2312.06,0.00019178,2]
[421208593,1777255846627,-500.0,0.00019178,2]
[421208594,1777255846636,-151.0,0.00019178,2]
[421208595,1777255846645,-500.62376373,0.00019178,2]
[421208596,1777255846654,-151.0,0.00019178,2]
[421208597,1777255846664,-151.0,0.00019178,2]
[421208598,1777255846673,-249.981717,0.00019178,2]
[421208599,1777255846682,-501.4651968,0.00019178,2]
[421208600,1777255846691,-500.0,0.00019178,2]
[421208601,1777255846700,-500.0,0.00019178,2]
[421208602,1777255846710,-544.16940666,0.00019178,2]
[421208603,1777255846719,-500.0,0.00019178,2]
[421208604,1777255846728,-500.0,0.00019178,2]
[421208605,1777255846737,-500.0,0.00019178,2]
[421208606,1777255846746,-501.28752738,0.00019178,2]
[421208607,1777255846755,-502.39955427,0.00019178,2]
[421208608,1777255846764,-986.26,0.00019178,2]
[421208609,1777255846774,-1112.105777,0.00019178,2]
[421208610,1777255846783,-1112.105777,0.00019178,2]
[421208611,1777255846791,-1112.105777,0.00019178,2]
[421208612,1777255846801,-1112.105777,0.00019178,2]
[421208613,1777255846811,-1112.105777,0.00019178,2]
[421208614,1777255846820,-1112.105777,0.00019178,2]
[421208615,1777255846829,-1425.96,0.00019178,2]
[421208616,1777255846839,-500.0,0.00019178,2]
[421208617,1777255846848,-500.33591938,0.00019178,2]
[421208618,1777255846857,-1390.58,0.00019178,2]
[421208619,1777255846867,-500.0,0.00019178,2]
[421208620,1777255846876,-1112.105777,0.00019178,2]
[421208621,1777255846885,-1112.105777,0.00019178,2]
[421208622,1777255846895,-1112.105777,0.00019178,2]
[421208623,1777255846905,-1112.105777,0.00019178,2]
[421208624,1777255846914,-1112.105777,0.00019178,2]
[421208625,1777255846923,-553.52792321,0.00019178,2]
[421208626,1777255846933,-1112.105779,0.00019178,2]
[421208627,1777255846942,-500.0,0.00019178,2]
[421208628,1777255846952,-502.57996542,0.00019178,2]
[421208629,1777255846961,-233.79251734,0.00019178,2]
[421208630,1777255846970,-1412.51,0.00019178,2]
[421208631,1777255846979,-500.0,0.00019178,2]
[421208632,1777255846989,-1324.41,0.00019178,2]
[421208633,1777255846998,-500.0,0.00019178,2]
[421208634,1777255847008,-1119.49,0.00019178,2]
[421208635,1777255847018,-774.622723,0.00019178,2]
[421208636,1777255847027,-774.622723,0.00019178,2]
[421208637,1777255847036,-1371.06,0.00019178,2]
[421208638,1777255847046,-502.7310099,0.00019178,2]
[421208639,1777255847056,-774.622723,0.00019178,2]
[421208640,1777255847065,-774.622723,0.00019178,2]
[421208641,1777255847076,-774.622723,0.00019178,2]
[421208642,1777255847086,-500.0,0.00019178,2]
[421208643,1777255847096,-774.622723,0.00019178,2]
[421208644,1777255847105,-500.0,0.00019178,2]
[421208645,1777255847114,-500.0,0.00019178,2]
[421208646,1777255847124,-774.622723,0.00019178,2]
[421208647,1777255847134,-774.622731,0.00019178,2]
[421208648,1777255847143,-756.79,0.00019178,2]
[421208649,1777255847153,-500.49214851,0.00019178,2]
[421208650,1777255847163,-500.0,0.00019178,2]
[421208651,1777255847172,-151.0,0.00019178,2]
[421208652,1777255847181,-151.0,0.00019178,2]
[421208653,1777255847190,-151.0,0.00019178,2]
[421208654,1777255847200,-151.0,0.00019178,2]
[421208655,1777255847209,-151.0,0.00019178,2]
[421208656,1777255847218,-151.0,0.00019178,2]
[421208657,1777255847228,-500.0,0.00019178,2]
[421208658,1777255847237,-500.0,0.00019178,2]
[421208659,1777255847247,-500.0,0.00019178,2]
[421208660,1777255847256,-644.94,0.00019178,2]
[421208661,1777255847267,-1080.240546,0.00019178,2]
[421208662,1777255847276,-1080.240546,0.00019178,2]
[421208663,1777255847285,-1080.240546,0.00019178,2]
[421208664,1777255847294,-1080.240546,0.00019178,2]
[421208665,1777255847303,-500.0,0.00019178,2]
[421208666,1777255847312,-550.45700985,0.00019178,2]
[421208667,1777255847321,-1080.240546,0.00019178,2]
[421208669,1777255847330,-1080.240546,0.00019178,2]
[421208671,1777255847340,-690.764039,0.00019178,2]
[421208672,1777255847348,-690.764039,0.00019178,2]
[421208673,1777255847358,-1080.240546,0.00019178,2]
[421208674,1777255847367,-1080.240553,0.00019178,2]
[421208675,1777255847376,-690.764039,0.00019178,2]
[421208676,1777255847386,-5385.76,0.00019178,2]
[421208677,1777255847395,-690.764039,0.00019178,2]
[421208678,1777255847405,-500.0,0.00019178,2]
[421208679,1777255847414,-690.764039,0.00019178,2]
[421208680,1777255847424,-690.764039,0.00019178,2]
[421208681,1777255847433,-500.6944682,0.00019178,2]
[421208682,1777255847443,-500.0,0.00019178,2]
[421208683,1777255847452,-690.764039,0.00019178,2]
[421208684,1777255847461,-690.764045,0.00019178,2]
[421208685,1777255847470,-2045.82,0.00019178,2]
[421208686,1777255847479,-500.0,0.00019178,2]
[421208687,1777255847489,-500.0,0.00019178,2]
[421208688,1777255847498,-497.22870636,0.00019178,2]
[421208689,1777255847508,-490.9953245,0.00019178,2]
[421208690,1777255847517,-500.0,0.00019178,2]
[421208691,1777255847526,-500.0,0.00019178,2]
[421208692,1777255847536,-623.63,0.00019178,2]
[421208693,1777255847545,-500.0,0.00019178,2]
[421208694,1777255847555,-500.0,0.00019178,2]
[421208695,1777255847564,-513.86,0.00019178,2]
[421208696,1777255847573,-500.0,0.00019178,2]
[421208697,1777255847583,-500.0,0.00019178,2]
[421208698,1777255847593,-508.65,0.00019178,2]
[421208699,1777255847602,-500.0,0.00019178,2]
[421208700,1777255847611,-500.0,0.00019178,2]
[421208701,1777255847621,-1053.73,0.00019178,2]
[421208702,1777255847631,-1771.86,0.00019178,2]
[421208703,1777255847640,-500.0,0.00019178,2]
[421208704,1777255847650,-500.0,0.00019178,2]
[421208705,1777255847659,-500.0,0.00019178,2]
[421208706,1777255847668,-500.0,0.00019178,2]
[421208707,1777255847677,-500.0,0.00019178,2]
[421208708,1777255847686,-864.3,0.00019178,2]
[421208709,1777255847695,-534.36,0.00019178,2]
[421208710,1777255847704,-500.0,0.00019178,2]
[421208711,1777255847715,-500.0,0.00019178,2]
[421208712,1777255847724,-997.56,0.00019178,2]
[421208713,1777255847733,-692.91,0.00019178,2]
[421208714,1777255847742,-500.0,0.00019178,2]
[421208715,1777255847752,-500.0,0.00019178,2]
[421208716,1777255847761,-500.0,0.00019178,2]
[421208717,1777255847770,-1236.81,0.00019178,2]
[421208718,1777255847779,-788.65,0.00019178,2]
[421208719,1777255847789,-500.0,0.00019178,2]
[421208720,1777255847798,-810.74,0.00019178,2]
[421208721,1777255847808,-574.53,0.00019178,2]
[421208722,1777255847818,-500.0,0.00019178,2]
[421208723,1777255847827,-1899.66,0.00019178,2]
[421208724,1777255847837,-500.0,0.00019178,2]
[421208725,1777255847847,-861.22,0.00019178,2]
[421208726,1777255847857,-500.0,0.00019178,2]
[421208727,1777255847866,-886.6,0.00019178,2]
[421208728,1777255847875,-785.53,0.00019178,2]
[421208729,1777255847885,-500.31529661,0.00019178,2]
[421208730,1777255847894,-563.71,0.00019178,2]
[421208731,1777255847905,-500.0,0.00019178,2]
[421208732,1777255847915,-526.18782483,0.00019178,2]
[421208733,1777255847925,-500.0,0.00019178,2]
[421208734,1777255847934,-942.1,0.00019178,2]
[421208735,1777255847944,-1000.0,0.00019178,2]
[421208736,1777255847953,-3262.74,0.00019178,2]
[421208737,1777255847963,-3513.08,0.00019178,2]
[421208738,1777255847972,-500.0,0.00019178,2]
[421208739,1777255847982,-500.0,0.00019178,2]
[421208740,1777255847992,-1132.22,0.00019178,2]
[421208741,1777255848001,-500.0,0.00019178,2]
[421208742,1777255848012,-500.0,0.00019178,2]
[421208743,1777255848022,-500.0,0.00019178,2]
[421208744,1777255848032,-500.0,0.00019178,2]
[421208745,1777255848042,-500.0,0.00019178,2]
[421208746,1777255848051,-500.0,0.00019178,2]
[421208747,1777255848060,-155.0,0.00019178,2]
[421208748,1777255848069,-340.0,0.00019178,2]
[421208749,1777255848078,-295.43428253,0.00019178,2]
[421208750,1777255848105,-44.56571747,0.00019178,2]
[421208751,1777255848114,-155.0,0.00019178,2]
[421208752,1777255848124,-500.0,0.00019178,2]
[421208753,1777255848133,-155.0,0.00019178,2]
[421208754,1777255848142,-340.0,0.00019178,2]
[421208755,1777255848151,-161.15535184,0.00019178,2]
[421208756,1777255848160,-340.0,0.00019178,2]
[421208757,1777255848169,-155.0,0.00019178,2]
[421208758,1777255848179,-340.0,0.00019178,2]
[421208759,1777255848188,-165.46723148,0.00019178,2]